fUST/lending_fUST_20260331
["ID","MTS","AMOUNT","RATE_DAILY","PERIOD"]
[419102137,1774891841355,-500.0,0.00023554,2]
[419102138,1774891841365,-170.0,0.00023554,2]
[419102139,1774891841375,-500.0,0.00023554,2]
[419102140,1774891841385,-500.0,0.00023554,2]
[419102141,1774891841395,-500.0,0.00023554,2]
[419102142,1774891841405,-500.0,0.00023554,2]
[419102143,1774891841415,-1527.68694819,0.00023555,2]
[419102144,1774891841428,-4169.368824,0.00023555,2]
[419102145,1774891841437,-200.0,0.00023555,2]
[419102146,1774891841447,-1499.7136889,0.00023555,2]
[419102147,1774891841459,-32348.18851633,0.00023555,2]
[419102148,1774891841474,-1119.34001489,0.00023555,2]
[419102189,1774891849467,-3928.60947472,0.00023555,2]
[419102190,1774891849522,-14531.2084948,0.00023555,2]
[419102193,1774891849534,-2943.40244164,0.00023555,2]
[419102227,1774892274131,153.24632965,9e-07,30]
[419102228,1774892274236,153.24632965,9e-07,30]
[419102229,1774892274349,153.24632965,8.9e-07,30]
[419102230,1774892274456,153.24632965,8.9e-07,30]
[419102231,1774892274562,153.24632965,8.8e-07,30]
[419102232,1774892274682,153.24632965,8.8e-07,30]
[419102236,1774892622747,1090.09,0.00032877,120]
[419102281,1774893031854,-369.20759457,0.0001287,2]
[419102288,1774893031907,-232.79240543,0.0001287,2]
[419102290,1774893031917,-829.2,0.00013,2]
[419102292,1774893031926,-1000.0,0.00013699,2]
[419102294,1774893031936,-1069.53,0.0002,2]
[419102296,1774893031945,-178.73872993,0.00020136,5]
[419102298,1774893031955,-446.4629559,0.00021713,2]
[419102300,1774893031964,-157.0,0.00022,2]
[419102301,1774893031974,-190.0,0.00022,2]
[419102303,1774893031983,-152.0,0.00022,2]
[419102305,1774893031993,-196.2208232,0.00022559,2]
[419102307,1774893032002,-196.2308133,0.00022559,2]
[419102310,1774893032011,-196.2208232,0.00022559,2]
[419102313,1774893032021,-156.20769032,0.00022946,2]
[419102316,1774893032030,-196.22569117,0.00022946,2]
[419102318,1774893032039,-157.0,0.00023,2]
[419102321,1774893032049,-190.0,0.00023,2]
[419102323,1774893032058,-270.83333333,0.00023,2]
[419102325,1774893032067,-152.0,0.00023014,7]
[419102327,1774893032077,-500.0,0.00023019,2]
[419102329,1774893032087,-500.0,0.00023019,2]
[419102332,1774893032098,-300.30740423,0.00023019,2]
[419102334,1774893032107,-596.90516882,0.00023019,2]
[419102335,1774893032116,-6.15787173,0.0002302,2]
[419102338,1774893032129,-286.24618574,0.0002302,2]
[419102351,1774893032247,-3954.31323127,0.0002302,2]
[419102354,1774893032269,-66734.14729466,0.0002302,2]
[419102592,1774893040337,-262.23334801,0.00022945,2]
[419102593,1774893040346,-220.19484046,0.00022945,2]
[419102595,1774893040355,-500.0,0.00023019,2]
[419102596,1774893040365,-500.0,0.00023019,2]
[419102597,1774893040374,-273.85147184,0.00023019,2]
[419102598,1774893040401,-226.14852816,0.00023019,2]
[419102599,1774893040411,-500.0,0.00023019,2]
[419102600,1774893040421,-500.0,0.00023019,2]
[419102601,1774893040431,-378.78558128,0.00023019,2]
[419102602,1774893040440,-500.0,0.00023019,2]
[419102603,1774893040451,-500.0,0.00023019,2]
[419102604,1774893040460,-500.0,0.00023019,2]
[419102605,1774893040470,-500.0,0.00023019,2]
[419102606,1774893040479,-500.0,0.00023019,2]
[419102607,1774893040490,-500.0,0.00023019,2]
[419102608,1774893040499,-516.92524257,0.00023019,2]
[419102609,1774893040508,-500.0,0.00023019,2]
[419102610,1774893040517,-500.0,0.00023019,2]
[419102611,1774893040527,-500.0,0.00023019,2]
[419102612,1774893040536,-367.5,0.00023019,2]
[419102613,1774893040546,-500.0,0.00023019,2]
[419102614,1774893040555,-500.0,0.00023019,2]
[419102615,1774893040566,-500.0,0.00023019,2]
[419102616,1774893040575,-500.0,0.00023019,2]
[419102617,1774893040584,-500.0,0.00023019,2]
[419102618,1774893040593,-500.0,0.00023019,2]
[419102619,1774893040602,-500.0,0.00023019,2]
[419102620,1774893040612,-500.0,0.00023019,2]
[419102621,1774893040621,-500.0,0.00023019,2]
[419102622,1774893040630,-500.0,0.00023019,2]
[419102623,1774893040639,-500.0,0.00023019,2]
[419102624,1774893040648,-500.0,0.00023019,2]
[419102625,1774893040657,-500.0,0.00023019,2]
[419102626,1774893040666,-562.20215977,0.00023019,2]
[419102627,1774893040675,-37527.61222285,0.0002302,2]
[419102628,1774893040686,-46588.51305982,0.0002302,2]
[419102629,1774893040697,-1465.00951315,0.0002302,2]
[419102630,1774893040708,-5199.95634752,0.0002302,2]
[419102633,1774893041126,-351.48525876,0.0002302,2]
[419102635,1774893041137,-11515.60000023,0.0002302,2]
[419102640,1774893041180,-3687.01289079,0.0002302,2]
[419102772,1774893047743,-289.03575981,0.0002292,2]
[419102773,1774893047752,-13644.93038158,0.0002302,2]
[419102774,1774893048055,-1984.168497,0.0002302,2]
[419102775,1774893048092,-1439.55038988,0.0002302,2]
[419102776,1774893048104,-48118.79836912,0.0002302,2]
[419102778,1774893157674,1000.0,0.00032377,120]
[419102780,1774893304776,2000.0,0.0003287,120]
[419102781,1774893403666,500.25013,0.00032877,120]
[419102782,1774893428625,1000.0,0.00032877,120]
[419102789,1774893856778,3201.0,0.00032877,120]
[419102810,1774894232171,-7062.29212004,7.6e-05,2]
[419102811,1774894232181,-8.16416714,0.00013699,2]
[419102812,1774894232225,-344.44000162,0.00013699,2]
[419102881,1774894238151,-647.39583124,0.00013699,2]
[419102882,1774894238161,-615.0,0.00013699,2]
[419102883,1774894238171,-1395.25,0.0002,2]
[419102884,1774894238180,-714.2399648,0.00020222,2]
[419102885,1774894238190,-344.0,0.0002045,30]
[419102886,1774894238199,-248.87955421,0.00021095,5]
[419102887,1774894238209,-223.01382923,0.00021268,5]
[419102888,1774894238219,-1000.0,0.00021894,2]
[419102889,1774894238229,-159.0,0.00022,2]
[419102890,1774894238238,-171.0,0.00022,2]
[419102891,1774894238248,-152.0,0.00022,2]
[419102892,1774894238258,-530.06721802,0.00022267,5]
[419102893,1774894238267,-255.85355026,0.00022466,2]
[419102894,1774894238277,-52984.02527196,0.00022493,2]
[419102895,1774894238286,-316.51650092,0.00022566,2]
[419102896,1774894238296,-569.72970165,0.00022566,2]
[419102897,1774894238305,-1012.85280294,0.00022566,2]
[419102898,1774894238315,-151.0,0.000227,8]
[419102899,1774894238324,-303.10579444,0.00022718,2]
[419102900,1774894238333,-500.0,0.00022718,2]
[419102901,1774894238343,-500.0,0.00022718,2]
[419102902,1774894238352,-500.0,0.00022718,2]
[419102903,1774894238361,-267.663003,0.00022718,2]
[419102904,1774894238372,-594.65516462,0.00022718,2]
[419102905,1774894238382,-500.0,0.00022719,2]
[419102906,1774894238391,-500.0,0.00022719,2]
[419102907,1774894238400,-471.93034588,0.00022719,2]
[419102908,1774894238410,-327.04138342,0.00022719,2]
[419102909,1774894238419,-124425.8810403,0.0002272,2]
[419102910,1774894238434,-4553.54716792,0.0002272,2]
[419102962,1774894243694,-13359.0,0.0002272,2]
[419102980,1774894246480,-30317.5760181,0.0002272,2]
[419102992,1774894680429,500.0,0.00032876,120]
[419103035,1774895432473,-453.06164486,0.00013562,2]
[419103038,1774895432488,-159.93835514,0.00013562,2]
[419103040,1774895432498,-1000.0,0.00013699,2]
[419103042,1774895432507,-169.42098782,0.00019348,2]
[419103044,1774895432518,-304.95777807,0.00019348,2]
[419103046,1774895432528,-1395.25,0.0002,2]
[419103048,1774895432538,-994.52269861,0.00021924,5]
[419103062,1774895432658,-447.02081817,0.00021924,5]
[419103064,1774895432668,-163.0,0.00022,2]
[419103066,1774895432678,-300.0,0.00022399,2]
[419103068,1774895432688,-784.23535838,0.000224,38]
[419103070,1774895432698,-772.41208656,0.000224,38]
[419103072,1774895432707,-223.87185653,0.00022405,2]
[419103074,1774895432716,-5548.35591541,0.0002242,2]
[419103076,1774895432726,-1420.9343798,0.00022505,2]
[419103078,1774895432736,-372.48138948,0.00022505,2]
[419103081,1774895432748,-566.10948294,0.00022505,2]
[419103083,1774895432759,-5433.56,0.00022505,2]
[419103131,1774895438328,-1481.60716522,0.00022505,2]
[419103132,1774895438340,-12769.92971522,0.00022505,2]
[419103133,1774895438391,-7330.60709874,0.00022505,2]
[419103134,1774895438401,-5993.4837122,0.00022505,2]
[419103135,1774895438411,-599.60298507,0.00022506,2]
[419103136,1774895438421,-156.587,0.00022506,2]
[419103137,1774895438431,-2300.98009715,0.00022506,2]
[419103138,1774895438440,-49630.63816471,0.0002252,2]
[419103139,1774895438452,-37264.9920143,0.0002252,2]
[419103158,1774895440806,-9194.16412116,0.0002252,2]
[419103162,1774895440864,-5989.53541655,0.0002252,2]
[419103310,1774895443779,-26720.00000001,0.0002252,2]
[419103330,1774895446540,-9315.38910338,0.0002252,2]
[419103331,1774895481650,-661.92977073,0.0001,2]
[419103333,1774895738636,-289.03575981,9.899e-05,2]
[419103350,1774896356627,10066.00000005,0.000328,120]
[419103386,1774896632458,-556.0,9.702e-05,2]
[419103388,1774896632469,-300.0,9.999e-05,2]
[419103390,1774896632479,-1200.0,9.999e-05,2]
[419103392,1774896632489,-4410.31291636,0.0001,2]
[419103395,1774896632500,-294.24117565,0.0001,2]
[419103397,1774896632512,-2711.43230879,0.0001,2]
[419103399,1774896632525,-7703.11114865,0.0001,2]
[419103402,1774896632537,-13116.0756232,0.0001,2]
[419103404,1774896632547,-4791.75641493,0.0001,2]
[419103406,1774896632559,-1208.01099531,0.0001,2]
[419103408,1774896632569,-594.57695036,0.0001,2]
[419103410,1774896632579,-448.0,0.00010999,2]
[419103412,1774896632589,-452.74009948,0.000129,2]
[419103414,1774896632598,-406.15199429,0.00012964,2]
[419103566,1774896638508,-46.58810514,0.00012964,2]
[419103567,1774896638519,-1000.0,0.00013699,2]
[419103569,1774896638529,-452.74009943,0.00016028,2]
[419103571,1774896638539,-13822.2324277,0.0001807,2]
[419103573,1774896638549,-1000.0,0.0001879,2]
[419103574,1774896638558,-452.74009943,0.00019092,2]
[419103576,1774896638568,-440.72421057,0.00019185,2]
[419103578,1774896638578,-793.30357903,0.00019185,2]
[419103580,1774896638587,-1410.31747383,0.00019185,2]
[419103581,1774896638597,-158.47835145,0.00019185,2]
[419103583,1774896638607,-285.26103262,0.00019185,2]
[419103585,1774896638617,-507.13072466,0.00019185,2]
[419103587,1774896638627,-156.13468147,0.0002,2]
[419103588,1774896638636,-155.0,0.000209,2]
[419103590,1774896638646,-354.0,0.00021828,2]
[419103592,1774896638655,-157.0,0.000219,2]
[419103594,1774896638665,-154.0,0.00022,2]
[419103595,1774896638675,-1020.44,0.00022,2]
[419103597,1774896638684,-157.15409202,0.0002201,5]
[419103599,1774896638694,-628.61636809,0.0002201,5]
[419103601,1774896638703,-457.0,0.00022015,2]
[419103602,1774896638713,-452.74009943,0.00022156,2]
[419103604,1774896638722,-1957.856,0.00022277,2]
[419103606,1774896638732,-599.60298507,0.00022277,2]
[419103608,1774896638742,-2398.4119403,0.00022277,2]
[419103609,1774896638751,-2030.296672,0.00022332,2]
[419103611,1774896638760,-621.78829552,0.00022332,2]
[419103613,1774896638770,-2105.41764886,0.00022387,2]
[419103615,1774896638780,-644.79446246,0.00022387,2]
[419103616,1774896638790,-253.29156451,0.0002242,2]
[419103618,1774896638801,-2187.43089962,0.00022442,2]
[419103620,1774896638811,-668.65185757,0.00022442,2]
[419103622,1774896638821,-693.3919763,0.00022497,2]
[419103623,1774896638831,-563.37606158,0.00022504,2]
[419103625,1774896638840,-500.0,0.00022504,2]
[419103627,1774896638850,-170.04107487,0.00022506,2]
[419103629,1774896638860,-151.72942493,0.00022506,2]
[419103630,1774896638871,-455.15620862,0.00022506,2]
[419103632,1774896638881,-599.60298507,0.00022506,2]
[419103634,1774896638890,-156.587,0.00022506,2]
[419103636,1774896638899,-586.39,0.0002251,10]
[419103637,1774896638909,-488.66,0.0002251,10]
[419103639,1774896638918,-407.22,0.0002251,10]
[419103641,1774896638928,-500.0,0.0002252,2]
[419103643,1774896638937,-151.0,0.0002252,2]
[419103644,1774896638946,-151.0,0.0002252,2]
[419103646,1774896638956,-151.0,0.0002252,2]
[419103648,1774896638965,-151.0,0.0002252,2]
[419103649,1774896638974,-151.0,0.0002252,2]
[419103651,1774896638984,-151.0,0.0002252,2]
[419103653,1774896638993,-151.0,0.0002252,2]
[419103655,1774896639003,-151.0,0.0002252,2]
[419103657,1774896639013,-151.0,0.0002252,2]
[419103658,1774896639023,-151.0,0.0002252,2]
[419103660,1774896639033,-151.0,0.0002252,2]
[419103662,1774896639045,-151.0,0.0002252,2]
[419103664,1774896639055,-151.0,0.0002252,2]
[419103665,1774896639064,-151.0,0.0002252,2]
[419103667,1774896639075,-151.0,0.0002252,2]
[419103669,1774896639084,-151.0,0.0002252,2]
[419103671,1774896639095,-151.0,0.0002252,2]
[419103672,1774896639104,-222.883376,0.0002252,2]
[419103674,1774896639114,-151.0,0.0002252,2]
[419103676,1774896639123,-167.829604,0.0002252,2]
[419103678,1774896639133,-211.364116,0.0002252,2]
[419103680,1774896639142,-211.364116,0.0002252,2]
[419103681,1774896639153,-211.364116,0.0002252,2]
[419103683,1774896639163,-211.364116,0.0002252,2]
[419103685,1774896639173,-211.364116,0.0002252,2]
[419103687,1774896639182,-211.364116,0.0002252,2]
[419103689,1774896639191,-211.364116,0.0002252,2]
[419103690,1774896639201,-211.364116,0.0002252,2]
[419103692,1774896639211,-211.364116,0.0002252,2]
[419103694,1774896639220,-211.364116,0.0002252,2]
[419103696,1774896639230,-211.364116,0.0002252,2]
[419103698,1774896639239,-211.364116,0.0002252,2]
[419103699,1774896639249,-211.364116,0.0002252,2]
[419103701,1774896639259,-211.364116,0.0002252,2]
[419103703,1774896639268,-211.364116,0.0002252,2]
[419103705,1774896639280,-211.364116,0.0002252,2]
[419103707,1774896639290,-211.364116,0.0002252,2]
[419103709,1774896639302,-211.364116,0.0002252,2]
[419103711,1774896639311,-211.364116,0.0002252,2]
[419103712,1774896639321,-211.364108,0.0002252,2]
[419103714,1774896639330,-151.0,0.0002252,2]
[419103716,1774896639340,-151.0,0.0002252,2]
[419103718,1774896639349,-151.0,0.0002252,2]
[419103719,1774896639359,-151.0,0.0002252,2]
[419103721,1774896639368,-151.0,0.0002252,2]
[419103723,1774896639379,-245.030912,0.0002252,2]
[419103725,1774896639389,-165.532416,0.0002252,2]
[419103726,1774896639400,-162.154635,0.0002252,2]
[419103728,1774896639411,-462.487253,0.0002252,2]
[419103730,1774896639421,-462.487253,0.0002252,2]
[419103732,1774896639431,-462.487253,0.0002252,2]
[419103733,1774896639441,-462.487253,0.0002252,2]
[419103734,1774896639452,-462.487253,0.0002252,2]
[419103735,1774896639462,-462.487253,0.0002252,2]
[419103736,1774896639473,-462.487253,0.0002252,2]
[419103737,1774896639486,-462.487253,0.0002252,2]
[419103738,1774896639497,-462.487253,0.0002252,2]
[419103739,1774896639508,-462.487253,0.0002252,2]
[419103740,1774896639519,-462.487253,0.0002252,2]
[419103741,1774896639531,-462.487253,0.0002252,2]
[419103742,1774896639540,-462.487253,0.0002252,2]
[419103743,1774896639559,-1617.502518,0.0002252,2]
[419103744,1774896639569,-462.487253,0.0002252,2]
[419103745,1774896639580,-1617.502518,0.0002252,2]
[419103746,1774896639594,-462.487253,0.0002252,2]
[419103747,1774896639604,-1617.502518,0.0002252,2]
[419103748,1774896639615,-1617.502518,0.0002252,2]
[419103749,1774896639626,-462.487253,0.0002252,2]
[419103750,1774896639636,-1617.502518,0.0002252,2]
[419103751,1774896639646,-462.487253,0.0002252,2]
[419103752,1774896639656,-1617.502518,0.0002252,2]
[419103753,1774896639667,-462.487253,0.0002252,2]
[419103754,1774896639678,-1617.502518,0.0002252,2]
[419103755,1774896639688,-462.487253,0.0002252,2]
[419103756,1774896639698,-1617.502518,0.0002252,2]
[419103757,1774896639708,-462.487258,0.0002252,2]
[419103758,1774896639719,-1617.502518,0.0002252,2]
[419103759,1774896639729,-1617.502518,0.0002252,2]
[419103760,1774896639739,-1617.502518,0.0002252,2]
[419103761,1774896639749,-1617.502518,0.0002252,2]
[419103762,1774896639759,-1617.502518,0.0002252,2]
[419103763,1774896639769,-1617.502518,0.0002252,2]
[419103764,1774896639780,-1617.502518,0.0002252,2]
[419103765,1774896639790,-1617.502518,0.0002252,2]
[419103766,1774896639806,-1617.502518,0.0002252,2]
[419103767,1774896639816,-1617.502518,0.0002252,2]
[419103768,1774896639826,-1617.502518,0.0002252,2]
[419103769,1774896639836,-1617.50251,0.0002252,2]
[419103770,1774896639847,-367.912912,0.0002252,2]
[419103771,1774896639857,-367.912912,0.0002252,2]
[419103772,1774896639867,-367.912912,0.0002252,2]
[419103773,1774896639878,-367.912912,0.0002252,2]
[419103774,1774896639887,-367.912912,0.0002252,2]
[419103775,1774896639897,-367.912912,0.0002252,2]
[419103776,1774896639907,-367.912912,0.0002252,2]
[419103777,1774896639917,-367.912912,0.0002252,2]
[419103778,1774896639927,-367.912912,0.0002252,2]
[419103779,1774896639937,-367.912912,0.0002252,2]
[419103780,1774896639947,-367.912912,0.0002252,2]
[419103781,1774896639957,-367.912912,0.0002252,2]
[419103782,1774896639967,-367.912912,0.0002252,2]
[419103783,1774896639976,-367.912912,0.0002252,2]
[419103784,1774896639987,-367.912912,0.0002252,2]
[419103785,1774896639998,-367.912912,0.0002252,2]
[419103786,1774896640008,-367.912912,0.0002252,2]
[419103787,1774896640018,-367.912912,0.0002252,2]
[419103788,1774896640027,-367.912912,0.0002252,2]
[419103789,1774896640038,-367.912902,0.0002252,2]
[419103790,1774896640050,-151.0,0.0002252,2]
[419103791,1774896640060,-151.0,0.0002252,2]
[419103792,1774896640070,-151.0,0.0002252,2]
[419103793,1774896640080,-151.0,0.0002252,2]
[419103794,1774896640089,-151.0,0.0002252,2]
[419103795,1774896640099,-151.0,0.0002252,2]
[419103796,1774896640108,-151.0,0.0002252,2]
[419103797,1774896640118,-151.0,0.0002252,2]
[419103798,1774896640128,-151.0,0.0002252,2]
[419103799,1774896640137,-151.0,0.0002252,2]
[419103801,1774896640147,-151.0,0.0002252,2]
[419103802,1774896640156,-151.0,0.0002252,2]
[419103803,1774896640166,-151.0,0.0002252,2]
[419103804,1774896640175,-151.0,0.0002252,2]
[419103805,1774896640184,-151.0,0.0002252,2]
[419103806,1774896640194,-151.0,0.0002252,2]
[419103807,1774896640203,-151.0,0.0002252,2]
[419103808,1774896640213,-151.0,0.0002252,2]
[419103809,1774896640223,-188.0,0.0002252,2]
[419103810,1774896640232,-1908.825538,0.0002252,2]
[419103811,1774896640242,-1908.825538,0.0002252,2]
[419103812,1774896640251,-1908.825538,0.0002252,2]
[419103813,1774896640261,-1908.825538,0.0002252,2]
[419103814,1774896640270,-1908.825538,0.0002252,2]
[419103815,1774896640279,-1908.825538,0.0002252,2]
[419103816,1774896640289,-1908.825538,0.0002252,2]
[419103817,1774896640301,-1908.825538,0.0002252,2]
[419103818,1774896640311,-1908.825538,0.0002252,2]
[419103819,1774896640320,-151.0,0.0002252,2]
[419103820,1774896640330,-1908.825538,0.0002252,2]
[419103821,1774896640340,-151.0,0.0002252,2]
[419103822,1774896640349,-1908.825538,0.0002252,2]
[419103823,1774896640359,-151.0,0.0002252,2]
[419103825,1774896640368,-1908.825538,0.0002252,2]
[419103826,1774896640378,-151.0,0.0002252,2]
[419103828,1774896640387,-1908.825538,0.0002252,2]
[419103829,1774896640397,-151.0,0.0002252,2]
[419103831,1774896640407,-1908.825538,0.0002252,2]
[419103832,1774896640417,-151.0,0.0002252,2]
[419103833,1774896640427,-151.0,0.0002252,2]
[419103834,1774896640437,-1908.825538,0.0002252,2]
[419103835,1774896640446,-151.0,0.0002252,2]
[419103836,1774896640456,-1908.825538,0.0002252,2]
[419103837,1774896640466,-151.0,0.0002252,2]
[419103838,1774896640475,-1908.825538,0.0002252,2]
[419103839,1774896640484,-151.0,0.0002252,2]
[419103840,1774896640494,-1908.825538,0.0002252,2]
[419103841,1774896640504,-151.0,0.0002252,2]
[419103842,1774896640514,-1908.825538,0.0002252,2]
[419103843,1774896640524,-1908.825548,0.0002252,2]
[419103844,1774896640533,-151.0,0.0002252,2]
[419103845,1774896640544,-151.0,0.0002252,2]
[419103846,1774896640554,-151.0,0.0002252,2]
[419103847,1774896640564,-162.113027,0.0002252,2]
[419103848,1774896640573,-4108.258141,0.0002252,2]
[419103849,1774896640583,-4108.258141,0.0002252,2]
[419103850,1774896640593,-4108.258141,0.0002252,2]
[419103851,1774896640603,-4108.258141,0.0002252,2]
[419103852,1774896640612,-4108.258141,0.0002252,2]
[419103853,1774896640622,-4108.258141,0.0002252,2]
[419103854,1774896640632,-4108.258141,0.0002252,2]
[419103855,1774896640642,-4108.258141,0.0002252,2]
[419103856,1774896640651,-4108.258141,0.0002252,2]
[419103857,1774896640661,-4108.258141,0.0002252,2]
[419103858,1774896640671,-4108.258141,0.0002252,2]
[419103859,1774896640681,-4108.258141,0.0002252,2]
[419103860,1774896640691,-4108.258141,0.0002252,2]
[419103861,1774896640701,-4108.258141,0.0002252,2]
[419103862,1774896640710,-4108.258141,0.0002252,2]
[419103863,1774896640720,-4108.258141,0.0002252,2]
[419103864,1774896640730,-4108.258141,0.0002252,2]
[419103865,1774896640739,-4108.258141,0.0002252,2]
[419103866,1774896640749,-4108.258141,0.0002252,2]
[419103867,1774896640759,-4108.2581476,0.0002252,2]
[419103868,1774896640769,-151.0,0.0002252,2]
[419103869,1774896640778,-264.883212,0.0002252,2]
[419103870,1774896640787,-215.95387,0.0002252,2]
[419103871,1774896640798,-215.95387,0.0002252,2]
[419103872,1774896640808,-215.95387,0.0002252,2]
[419103873,1774896640817,-215.95387,0.0002252,2]
[419103874,1774896640827,-215.95387,0.0002252,2]
[419103875,1774896640837,-215.95387,0.0002252,2]
[419103876,1774896640846,-215.95387,0.0002252,2]
[419103877,1774896640856,-215.95387,0.0002252,2]
[419103878,1774896640866,-215.95387,0.0002252,2]
[419103879,1774896640875,-215.95387,0.0002252,2]
[419103880,1774896640885,-215.95387,0.0002252,2]
[419103881,1774896640895,-215.95387,0.0002252,2]
[419103882,1774896640904,-215.95387,0.0002252,2]
[419103883,1774896640914,-215.95387,0.0002252,2]
[419103884,1774896640923,-215.95387,0.0002252,2]
[419103885,1774896640933,-215.95387,0.0002252,2]
[419103886,1774896640942,-215.95387,0.0002252,2]
[419103887,1774896640952,-215.95387,0.0002252,2]
[419103888,1774896640961,-215.95387,0.0002252,2]
[419103889,1774896640971,-215.953863,0.0002252,2]
[419103890,1774896640980,-335.889473,0.0002252,2]
[419103891,1774896640990,-335.889473,0.0002252,2]
[419103892,1774896640999,-335.889473,0.0002252,2]
[419103893,1774896641009,-335.889473,0.0002252,2]
[419103894,1774896641018,-335.889473,0.0002252,2]
[419103895,1774896641028,-335.889473,0.0002252,2]
[419103896,1774896641038,-335.889473,0.0002252,2]
[419103897,1774896641048,-335.889473,0.0002252,2]
[419103898,1774896641058,-335.889473,0.0002252,2]
[419103899,1774896641068,-335.889473,0.0002252,2]
[419103900,1774896641167,-335.889473,0.0002252,2]
[419103901,1774896641177,-335.889473,0.0002252,2]
[419103902,1774896641187,-335.889473,0.0002252,2]
[419103903,1774896641197,-335.889473,0.0002252,2]
[419103904,1774896641207,-335.889473,0.0002252,2]
[419103905,1774896641217,-335.889473,0.0002252,2]
[419103906,1774896641226,-335.889473,0.0002252,2]
[419103907,1774896641235,-335.889473,0.0002252,2]
[419103908,1774896641245,-335.889473,0.0002252,2]
[419103909,1774896641254,-335.889482,0.0002252,2]
[419103910,1774896641264,-151.0,0.0002252,2]
[419103911,1774896641273,-151.0,0.0002252,2]
[419103912,1774896641282,-151.0,0.0002252,2]
[419103913,1774896641292,-151.0,0.0002252,2]
[419103914,1774896641304,-151.0,0.0002252,2]
[419103915,1774896641314,-151.0,0.0002252,2]
[419103916,1774896641324,-151.0,0.0002252,2]
[419103917,1774896641333,-151.0,0.0002252,2]
[419103918,1774896641342,-151.0,0.0002252,2]
[419103919,1774896641352,-151.0,0.0002252,2]
[419103920,1774896641361,-151.0,0.0002252,2]
[419103921,1774896641371,-151.0,0.0002252,2]
[419103922,1774896641380,-151.0,0.0002252,2]
[419103923,1774896641390,-151.0,0.0002252,2]
[419103924,1774896641399,-151.0,0.0002252,2]
[419103925,1774896641408,-238.669427,0.0002252,2]
[419103926,1774896641418,-151.0,0.0002252,2]
[419103927,1774896641427,-151.0,0.0002252,2]
[419103928,1774896641436,-151.0,0.0002252,2]
[419103929,1774896641446,-151.0,0.0002252,2]
[419103930,1774896641455,-151.0,0.0002252,2]
[419103931,1774896641465,-151.0,0.0002252,2]
[419103932,1774896641474,-151.0,0.0002252,2]
[419103933,1774896641483,-214.62925,0.0002252,2]
[419103934,1774896641492,-151.0,0.0002252,2]
[419103935,1774896641502,-151.0,0.0002252,2]
[419103936,1774896641512,-162.240554,0.0002252,2]
[419103937,1774896641522,-151.0,0.0002252,2]
[419103938,1774896641531,-151.0,0.0002252,2]
[419103939,1774896641540,-151.0,0.0002252,2]
[419103940,1774896641552,-151.0,0.0002252,2]
[419103941,1774896641562,-151.0,0.0002252,2]
[419103942,1774896641571,-151.0,0.0002252,2]
[419103943,1774896641581,-151.0,0.0002252,2]
[419103944,1774896641591,-151.680427,0.0002252,2]
[419103945,1774896641600,-1328.544433,0.0002252,2]
[419103946,1774896641609,-1328.544433,0.0002252,2]
[419103947,1774896641619,-1328.544433,0.0002252,2]
[419103948,1774896641628,-1328.544433,0.0002252,2]
[419103949,1774896641638,-1328.544433,0.0002252,2]
[419103950,1774896641648,-1328.544433,0.0002252,2]
[419103951,1774896641657,-1328.544433,0.0002252,2]
[419103952,1774896641667,-1328.544433,0.0002252,2]
[419103953,1774896641676,-1328.544433,0.0002252,2]
[419103954,1774896641686,-1328.544433,0.0002252,2]
[419103955,1774896641695,-1328.544433,0.0002252,2]
[419103956,1774896641705,-1328.544433,0.0002252,2]
[419103957,1774896641715,-1328.544433,0.0002252,2]